Workbook

Sheet Guide
B2: PERSONLIGT KASSAFLÖDE
B3: Den här arbetsboken innehåller kalkylblad för årligt, månatligt och dagligt kassaflöde. Välj den typ av kassaflöde som fungerar bäst för dig, eller använd alla för en insikt i ditt personliga kassaflöde.
B5: Dagligt kassaflöde | E5: Månatligt kassaflöde | H5: Årligt kassaflöde
B7: Ange det uppskattade kassaflödesbeloppet för varje dag och granska de uppskattade månatliga och årliga totalsummorna. Få med hjälp av det här en insikt i hur dina dagliga utgifter ser ut under en månad eller ett år. | E7: Ange det månatliga kassaflödet för varje månad eller uppskatta de återstående månaderna om du vill se det beräknade kassaflödet för året för varje månad. | H7: Ange ett årligt kassaflödesbelopp i fyra kalkylblad: Intäkter, Utgifter, Övrigt och Sparande. Du kan se den månatliga fördelningen, jämföra de olika områdena och, viktigast av allt, se vad slutresultatet är i siffror både per år och månad.

Sheet Dagligt kassaflöde
B1: PERSONLIGT KASSAFLÖDE
C2: Summa tillgängliga kontanter: | D2: =DagligtKassaflöde -> 577.84 kr | F2: OBS! Om du vill lägga till dagliga poster i tabellen uppskattar du deras månatliga belopp/värde och placerar värdet i rätt månadskolumn.
B4: DAGLIG ÖVERSIKT
B5: Totalsummor | C5: Daglig | D5: Månatlig | E5: Årlig
B6: Inkomster | C6: =SUMIF(Daglig[Typ],$B6,Daglig[Daglig]) -> 342.47 kr | D6: =SUMIF(Daglig[Typ],$B6,Daglig[Månatlig]) -> 10,416.80 kr | E6: =SUMIF(Daglig[Typ],$B6,Daglig[Årlig]) -> 125,001.55 kr
B7: Utgifter | C7: =SUMIF(Daglig[Typ],$B7,Daglig[Daglig]) -> 136.06 kr | D7: =SUMIF(Daglig[Typ],$B7,Daglig[Månatlig]) -> 4,138.49 kr | E7: =SUMIF(Daglig[Typ],$B7,Daglig[Årlig]) -> 49,661.90 kr
B8: Övrigt | C8: =SUMIF(Daglig[Typ],$B8,Daglig[Daglig]) -> 36.29 kr | D8: =SUMIF(Daglig[Typ],$B8,Daglig[Månatlig]) -> 1,103.82 kr | E8: =SUMIF(Daglig[Typ],$B8,Daglig[Årlig]) -> 13,245.85 kr
B9: Sparande | C9: =SUMIF(Daglig[Typ],$B9,Daglig[Daglig]) -> 63.02 kr | D9: =SUMIF(Daglig[Typ],$B9,Daglig[Månatlig]) -> 1,916.86 kr | E9: =SUMIF(Daglig[Typ],$B9,Daglig[Årlig]) -> 23,002.30 kr
B11: Typ | C11: Beskrivning | D11: Daglig | E11: Månatlig | F11: Årlig
B12: Inkomster | C12: Lön | D12: 246.58 kr | E12: =Daglig[[#This Row],[Årlig]]/12 -> 7,500.14 kr | F12: =Daglig[[#This Row],[Daglig]]*365 -> 90,001.70 kr
B13: Inkomster | C13: Provisioner/bonus | D13: 13.70 kr | E13: =Daglig[[#This Row],[Årlig]]/12 -> 416.71 kr | F13: =Daglig[[#This Row],[Daglig]]*365 -> 5,000.50 kr
B14: Inkomster | C14: Övrigt 1 | D14: 82.19 kr | E14: =Daglig[[#This Row],[Årlig]]/12 -> 2,499.95 kr | F14: =Daglig[[#This Row],[Daglig]]*365 -> 29,999.35 kr
B15: Inkomster | C15: Övrigt 2 | D15: 0.00 kr | E15: =Daglig[[#This Row],[Årlig]]/12 -> 0.00 kr | F15: =Daglig[[#This Row],[Daglig]]*365 -> 0.00 kr
B16: Inkomster | C16: Övrigt 3 | D16: 0.00 kr | E16: =Daglig[[#This Row],[Årlig]]/12 -> 0.00 kr | F16: =Daglig[[#This Row],[Daglig]]*365 -> 0.00 kr
B17: Inkomster | C17: Övrigt 4 | D17: 0.00 kr | E17: =Daglig[[#This Row],[Årlig]]/12 -> 0.00 kr | F17: =Daglig[[#This Row],[Daglig]]*365 -> 0.00 kr
B18: Utgifter | C18: Statlig inkomstskatt/egenavgifter/sjukförsäkring | D18: 41.10 kr | E18: =Daglig[[#This Row],[Årlig]]/12 -> 1,250.13 kr | F18: =Daglig[[#This Row],[Daglig]]*365 -> 15,001.50 kr
B19: Utgifter | C19: Kommunal inkomstskatt | D19: 6.85 kr | E19: =Daglig[[#This Row],[Årlig]]/12 -> 208.35 kr | F19: =Daglig[[#This Row],[Daglig]]*365 -> 2,500.25 kr
B20: Utgifter | C20: Fordonsskatt/avgifter | D20: 0.55 kr | E20: =Daglig[[#This Row],[Årlig]]/12 -> 16.73 kr | F20: =Daglig[[#This Row],[Daglig]]*365 -> 200.75 kr
B21: Utgifter | C21: Avbetalningar fordon | D21: 10.96 kr | E21: =Daglig[[#This Row],[Årlig]]/12 -> 333.37 kr | F21: =Daglig[[#This Row],[Daglig]]*365 -> 4,000.40 kr
B22: Utgifter | C22: Avbetalning bostad/hyra | D22: 41.10 kr | E22: =Daglig[[#This Row],[Årlig]]/12 -> 1,250.13 kr | F22: =Daglig[[#This Row],[Daglig]]*365 -> 15,001.50 kr
B23: Utgifter | C23: Försäkring | D23: 0.68 kr | E23: =Daglig[[#This Row],[Årlig]]/12 -> 20.68 kr | F23: =Daglig[[#This Row],[Daglig]]*365 -> 248.20 kr
B24: Utgifter | C24: Elektricitet | D24: 3.29 kr | E24: =Daglig[[#This Row],[Årlig]]/12 -> 100.07 kr | F24: =Daglig[[#This Row],[Daglig]]*365 -> 1,200.85 kr
B25: Utgifter | C25: Bensin | D25: 1.64 kr | E25: =Daglig[[#This Row],[Årlig]]/12 -> 49.88 kr | F25: =Daglig[[#This Row],[Daglig]]*365 -> 598.60 kr
B26: Utgifter | C26: Vatten | D26: 1.64 kr | E26: =Daglig[[#This Row],[Årlig]]/12 -> 49.88 kr | F26: =Daglig[[#This Row],[Daglig]]*365 -> 598.60 kr
B27: Utgifter | C27: Avlopp | D27: 0.82 kr | E27: =Daglig[[#This Row],[Årlig]]/12 -> 24.94 kr | F27: =Daglig[[#This Row],[Daglig]]*365 -> 299.30 kr
B28: Utgifter | C28: Sophantering | D28: 0.41 kr | E28: =Daglig[[#This Row],[Årlig]]/12 -> 12.47 kr | F28: =Daglig[[#This Row],[Daglig]]*365 -> 149.65 kr
B29: Utgifter | C29: Telefon | D29: 1.64 kr | E29: =Daglig[[#This Row],[Årlig]]/12 -> 49.88 kr | F29: =Daglig[[#This Row],[Daglig]]*365 -> 598.60 kr
B30: Utgifter | C30: Internet | D30: 1.64 kr | E30: =Daglig[[#This Row],[Årlig]]/12 -> 49.88 kr | F30: =Daglig[[#This Row],[Daglig]]*365 -> 598.60 kr
B31: Utgifter | C31: Funktionsnedsättningshjälp | D31: 4.11 kr | E31: =Daglig[[#This Row],[Årlig]]/12 -> 125.01 kr | F31: =Daglig[[#This Row],[Daglig]]*365 -> 1,500.15 kr
B32: Utgifter | C32: Mat | D32: 13.70 kr | E32: =Daglig[[#This Row],[Årlig]]/12 -> 416.71 kr | F32: =Daglig[[#This Row],[Daglig]]*365 -> 5,000.50 kr
B33: Utgifter | C33: Kläder | D33: 3.29 kr | E33: =Daglig[[#This Row],[Årlig]]/12 -> 100.07 kr | F33: =Daglig[[#This Row],[Daglig]]*365 -> 1,200.85 kr
B34: Utgifter | C34: Sjukvård/Tandvård/Läkemedel | D34: 1.64 kr | E34: =Daglig[[#This Row],[Årlig]]/12 -> 49.88 kr | F34: =Daglig[[#This Row],[Daglig]]*365 -> 598.60 kr
B35: Utgifter | C35: Buss | D35: 1.00 kr | E35: =Daglig[[#This Row],[Årlig]]/12 -> 30.42 kr | F35: =Daglig[[#This Row],[Daglig]]*365 -> 365.00 kr
B36: Utgifter | C36: Övrigt 2 | D36: 0.00 kr | E36: =Daglig[[#This Row],[Årlig]]/12 -> 0.00 kr | F36: =Daglig[[#This Row],[Daglig]]*365 -> 0.00 kr
B37: Utgifter | C37: Övrigt 3 | D37: 0.00 kr | E37: =Daglig[[#This Row],[Årlig]]/12 -> 0.00 kr | F37: =Daglig[[#This Row],[Daglig]]*365 -> 0.00 kr
B38: Utgifter | C38: Övrigt 4 | D38: 0.00 kr | E38: =Daglig[[#This Row],[Årlig]]/12 -> 0.00 kr | F38: =Daglig[[#This Row],[Daglig]]*365 -> 0.00 kr
B39: Övrigt | C39: Restaurang | D39: 3.29 kr | E39: =Daglig[[#This Row],[Årlig]]/12 -> 100.07 kr | F39: =Daglig[[#This Row],[Daglig]]*365 -> 1,200.85 kr
B40: Övrigt | C40: Gåvor | D40: 1.64 kr | E40: =Daglig[[#This Row],[Årlig]]/12 -> 49.88 kr | F40: =Daglig[[#This Row],[Daglig]]*365 -> 598.60 kr
B41: Övrigt | C41: Resor | D41: 6.16 kr | E41: =Daglig[[#This Row],[Årlig]]/12 -> 187.37 kr | F41: =Daglig[[#This Row],[Daglig]]*365 -> 2,248.40 kr
B42: Övrigt | C42: Nöjen | D42: 3.29 kr | E42: =Daglig[[#This Row],[Årlig]]/12 -> 100.07 kr | F42: =Daglig[[#This Row],[Daglig]]*365 -> 1,200.85 kr
B43: Övrigt | C43: Kroppsvård | D43: 0.82 kr | E43: =Daglig[[#This Row],[Årlig]]/12 -> 24.94 kr | F43: =Daglig[[#This Row],[Daglig]]*365 -> 299.30 kr
B44: Övrigt | C44: Shopping | D44: 5.48 kr | E44: =Daglig[[#This Row],[Årlig]]/12 -> 166.68 kr | F44: =Daglig[[#This Row],[Daglig]]*365 -> 2,000.20 kr
B45: Övrigt | C45: Välgörenhet | D45: 1.64 kr | E45: =Daglig[[#This Row],[Årlig]]/12 -> 49.88 kr | F45: =Daglig[[#This Row],[Daglig]]*365 -> 598.60 kr
B46: Övrigt | C46: Förening/medlemskap | D46: 0.82 kr | E46: =Daglig[[#This Row],[Årlig]]/12 -> 24.94 kr | F46: =Daglig[[#This Row],[Daglig]]*365 -> 299.30 kr
B47: Övrigt | C47: Renoveringar | D47: 13.15 kr | E47: =Daglig[[#This Row],[Årlig]]/12 -> 399.98 kr | F47: =Daglig[[#This Row],[Daglig]]*365 -> 4,799.75 kr
B48: Övrigt | C48: Övrigt 1 | D48: 0.00 kr | E48: =Daglig[[#This Row],[Årlig]]/12 -> 0.00 kr | F48: =Daglig[[#This Row],[Daglig]]*365 -> 0.00 kr
B49: Övrigt | C49: Övrigt 2 | D49: 0.00 kr | E49: =Daglig[[#This Row],[Årlig]]/12 -> 0.00 kr | F49: =Daglig[[#This Row],[Daglig]]*365 -> 0.00 kr
B50: Sparande | C50: Kassareserver | D50: 13.70 kr | E50: =Daglig[[#This Row],[Årlig]]/12 -> 416.71 kr | F50: =Daglig[[#This Row],[Daglig]]*365 -> 5,000.50 kr
B51: Sparande | C51: Pensionssparande | D51: 32.88 kr | E51: =Daglig[[#This Row],[Årlig]]/12 -> 1,000.10 kr | F51: =Daglig[[#This Row],[Daglig]]*365 -> 12,001.20 kr
B52: Sparande | C52: Sparkonto | D52: 16.44 kr | E52: =Daglig[[#This Row],[Årlig]]/12 -> 500.05 kr | F52: =Daglig[[#This Row],[Daglig]]*365 -> 6,000.60 kr
B53: Sparande | C53: Övrigt 1 | D53: 0.00 kr | E53: =Daglig[[#This Row],[Årlig]]/12 -> 0.00 kr | F53: =Daglig[[#This Row],[Daglig]]*365 -> 0.00 kr
B54: Sparande | C54: Övrigt 2 | D54: 0.00 kr | E54: =Daglig[[#This Row],[Årlig]]/12 -> 0.00 kr | F54: =Daglig[[#This Row],[Daglig]]*365 -> 0.00 kr
B55: Summa | D55: =SUMIF(Daglig[Typ],"Inkomster",Daglig[Daglig])-SUMIF(Daglig[Typ],"<>Inkomster",Daglig[Daglig]) -> 107.10 kr | E55: =SUMIF(Daglig[Typ],"Inkomster",Daglig[Månatlig])-SUMIF(Daglig[Typ],"<>Inkomster",Daglig[Månatlig]) -> 3,257.63 kr | F55: =SUMIF(Daglig[Typ],"Inkomster",Daglig[Årlig])-SUMIF(Daglig[Typ],"<>Inkomster",Daglig[Årlig]) -> 39,091.50 kr

Sheet Månatligt kassaflöde
B1: PERSONLIGT KASSAFLÖDE
C2: Månatlig kassaflödessumma: | D2: =MånatligtKassaflödeHittills -> 18,380.00 kr | F2: Obs! Uppskatta det månatliga beloppet/värdet för dagliga poster, och placera det värdet i rätt månadskolumn.
B4: Typ | C4: Beskrivning | D4: Jan | E4: Feb | F4: Mars | G4: Apr | H4: Maj | I4: Jun | J4: Jul | K4: Aug | L4: Sep | M4: Okt | N4: Nov | O4: Dec | P4: Summa
B5: Inkomster | C5: Lön | D5: 7,500.00 kr | E5: 7,500.00 kr | F5: 7,500.00 kr | G5: 7,500.00 kr | H5: 7,500.00 kr | I5: 7,500.00 kr | P5: =SUM(Månatlig[[#This Row],[Jan]:[Dec]]) -> 45,000.00 kr
B6: Inkomster | C6: Provisioner/bonus | D6: 400.00 kr | E6: 400.00 kr | F6: 500.00 kr | G6: 200.00 kr | H6: 0.00 kr | I6: 600.00 kr | P6: =SUM(Månatlig[[#This Row],[Jan]:[Dec]]) -> 2,100.00 kr
B7: Inkomster | C7: Övrigt 1 | D7: 2,500.00 kr | E7: 2,500.00 kr | F7: 2,500.00 kr | G7: 2,500.00 kr | H7: 2,500.00 kr | I7: 2,500.00 kr | P7: =SUM(Månatlig[[#This Row],[Jan]:[Dec]]) -> 15,000.00 kr
B8: Inkomster | C8: Övrigt 2 | D8: 0.00 kr | E8: 0.00 kr | F8: 0.00 kr | G8: 0.00 kr | H8: 0.00 kr | I8: 0.00 kr | P8: =SUM(Månatlig[[#This Row],[Jan]:[Dec]]) -> 0.00 kr
B9: Inkomster | C9: Övrigt 3 | D9: 0.00 kr | E9: 0.00 kr | F9: 0.00 kr | G9: 0.00 kr | H9: 0.00 kr | I9: 0.00 kr | P9: =SUM(Månatlig[[#This Row],[Jan]:[Dec]]) -> 0.00 kr
B10: Inkomster | C10: Övrigt 4 | D10: 0.00 kr | E10: 0.00 kr | F10: 0.00 kr | G10: 0.00 kr | H10: 0.00 kr | I10: 0.00 kr | P10: =SUM(Månatlig[[#This Row],[Jan]:[Dec]]) -> 0.00 kr
B11: Utgifter | C11: Statlig inkomstskatt/egenavgifter/sjukförsäkring | D11: 1,250.00 kr | E11: 1,250.00 kr | F11: 1,250.00 kr | G11: 1,250.00 kr | H11: 1,250.00 kr | I11: 1,250.00 kr | P11: =SUM(Månatlig[[#This Row],[Jan]:[Dec]]) -> 7,500.00 kr
B12: Utgifter | C12: Kommunal inkomstskatt | D12: 208.33 kr | E12: 208.33 kr | F12: 208.33 kr | G12: 208.33 kr | H12: 208.33 kr | I12: 208.33 kr | P12: =SUM(Månatlig[[#This Row],[Jan]:[Dec]]) -> 1,250.00 kr
B13: Utgifter | C13: Fordonsskatt/avgifter | D13: 16.67 kr | E13: 16.67 kr | F13: 16.67 kr | G13: 16.67 kr | H13: 16.67 kr | I13: 16.67 kr | P13: =SUM(Månatlig[[#This Row],[Jan]:[Dec]]) -> 100.00 kr
B14: Utgifter | C14: Avbetalningar fordon | D14: 333.33 kr | E14: 333.33 kr | F14: 333.33 kr | G14: 333.33 kr | H14: 333.33 kr | I14: 333.33 kr | P14: =SUM(Månatlig[[#This Row],[Jan]:[Dec]]) -> 2,000.00 kr
B15: Utgifter | C15: Avbetalning bostad/hyra | D15: 1,250.00 kr | E15: 1,250.00 kr | F15: 1,250.00 kr | G15: 1,250.00 kr | H15: 1,250.00 kr | I15: 1,250.00 kr | P15: =SUM(Månatlig[[#This Row],[Jan]:[Dec]]) -> 7,500.00 kr
B16: Utgifter | C16: Försäkring | D16: 25.00 kr | E16: 25.00 kr | F16: 25.00 kr | G16: 25.00 kr | H16: 25.00 kr | I16: 25.00 kr | P16: =SUM(Månatlig[[#This Row],[Jan]:[Dec]]) -> 150.00 kr
B17: Utgifter | C17: Elektricitet | D17: 100.00 kr | E17: 100.00 kr | F17: 100.00 kr | G17: 100.00 kr | H17: 100.00 kr | I17: 100.00 kr | P17: =SUM(Månatlig[[#This Row],[Jan]:[Dec]]) -> 600.00 kr
B18: Utgifter | C18: Bensin | D18: 50.00 kr | E18: 50.00 kr | F18: 50.00 kr | G18: 50.00 kr | H18: 50.00 kr | I18: 50.00 kr | P18: =SUM(Månatlig[[#This Row],[Jan]:[Dec]]) -> 300.00 kr
B19: Utgifter | C19: Vatten | D19: 50.00 kr | E19: 50.00 kr | F19: 50.00 kr | G19: 50.00 kr | H19: 50.00 kr | I19: 50.00 kr | P19: =SUM(Månatlig[[#This Row],[Jan]:[Dec]]) -> 300.00 kr
B20: Utgifter | C20: Avlopp | D20: 25.00 kr | E20: 25.00 kr | F20: 25.00 kr | G20: 25.00 kr | H20: 25.00 kr | I20: 25.00 kr | P20: =SUM(Månatlig[[#This Row],[Jan]:[Dec]]) -> 150.00 kr
B21: Utgifter | C21: Sophantering | D21: 12.50 kr | E21: 12.50 kr | F21: 12.50 kr | G21: 12.50 kr | H21: 12.50 kr | I21: 12.50 kr | P21: =SUM(Månatlig[[#This Row],[Jan]:[Dec]]) -> 75.00 kr
B22: Utgifter | C22: Telefon | D22: 50.00 kr | E22: 50.00 kr | F22: 50.00 kr | G22: 50.00 kr | H22: 50.00 kr | I22: 50.00 kr | P22: =SUM(Månatlig[[#This Row],[Jan]:[Dec]]) -> 300.00 kr
B23: Utgifter | C23: Internet | D23: 50.00 kr | E23: 50.00 kr | F23: 50.00 kr | G23: 50.00 kr | H23: 50.00 kr | I23: 50.00 kr | P23: =SUM(Månatlig[[#This Row],[Jan]:[Dec]]) -> 300.00 kr
B24: Utgifter | C24: Funktionsnedsättningshjälp | D24: 125.00 kr | E24: 125.00 kr | F24: 125.00 kr | G24: 125.00 kr | H24: 125.00 kr | I24: 125.00 kr | P24: =SUM(Månatlig[[#This Row],[Jan]:[Dec]]) -> 750.00 kr
B25: Utgifter | C25: Mat | D25: 400.00 kr | E25: 500.00 kr | F25: 450.00 kr | G25: 400.00 kr | H25: 450.00 kr | I25: 425.00 kr | P25: =SUM(Månatlig[[#This Row],[Jan]:[Dec]]) -> 2,625.00 kr
B26: Utgifter | C26: Kläder | D26: 50.00 kr | E26: 75.00 kr | F26: 100.00 kr | G26: 75.00 kr | H26: 125.00 kr | I26: 75.00 kr | P26: =SUM(Månatlig[[#This Row],[Jan]:[Dec]]) -> 500.00 kr
B27: Utgifter | C27: Sjukvård/Tandvård/Läkemedel | D27: 50.00 kr | E27: 10.00 kr | F27: 25.00 kr | G27: 25.00 kr | H27: 20.00 kr | I27: 70.00 kr | P27: =SUM(Månatlig[[#This Row],[Jan]:[Dec]]) -> 200.00 kr
B28: Utgifter | C28: Buss | D28: 30.00 kr | E28: 30.00 kr | F28: 30.00 kr | G28: 20.00 kr | H28: 30.00 kr | I28: 30.00 kr | P28: =SUM(Månatlig[[#This Row],[Jan]:[Dec]]) -> 170.00 kr
B29: Utgifter | C29: Övrigt 2 | D29: 0.00 kr | E29: 0.00 kr | F29: 0.00 kr | G29: 0.00 kr | H29: 0.00 kr | I29: 0.00 kr | P29: =SUM(Månatlig[[#This Row],[Jan]:[Dec]]) -> 0.00 kr
B30: Utgifter | C30: Övrigt 3 | D30: 0.00 kr | E30: 0.00 kr | F30: 0.00 kr | G30: 0.00 kr | H30: 0.00 kr | I30: 0.00 kr | P30: =SUM(Månatlig[[#This Row],[Jan]:[Dec]]) -> 0.00 kr
B31: Utgifter | C31: Övrigt 4 | D31: 0.00 kr | E31: 0.00 kr | F31: 0.00 kr | G31: 0.00 kr | H31: 0.00 kr | I31: 0.00 kr | P31: =SUM(Månatlig[[#This Row],[Jan]:[Dec]]) -> 0.00 kr
B32: Övrigt | C32: Restaurang | D32: 50.00 kr | E32: 150.00 kr | F32: 100.00 kr | G32: 50.00 kr | H32: 150.00 kr | I32: 100.00 kr | P32: =SUM(Månatlig[[#This Row],[Jan]:[Dec]]) -> 600.00 kr
B33: Övrigt | C33: Gåvor | D33: 25.00 kr | E33: 75.00 kr | F33: 50.00 kr | G33: 25.00 kr | H33: 75.00 kr | I33: 50.00 kr | P33: =SUM(Månatlig[[#This Row],[Jan]:[Dec]]) -> 300.00 kr
B34: Övrigt | C34: Resor | D34: 0.00 kr | E34: 0.00 kr | F34: 1,000.00 kr | G34: 0.00 kr | H34: 0.00 kr | I34: 1,000.00 kr | P34: =SUM(Månatlig[[#This Row],[Jan]:[Dec]]) -> 2,000.00 kr
B35: Övrigt | C35: Nöjen | D35: 50.00 kr | E35: 150.00 kr | F35: 100.00 kr | G35: 50.00 kr | H35: 150.00 kr | I35: 100.00 kr | P35: =SUM(Månatlig[[#This Row],[Jan]:[Dec]]) -> 600.00 kr
B36: Övrigt | C36: Kroppsvård | D36: 15.00 kr | E36: 25.00 kr | F36: 35.00 kr | G36: 15.00 kr | H36: 25.00 kr | I36: 35.00 kr | P36: =SUM(Månatlig[[#This Row],[Jan]:[Dec]]) -> 150.00 kr
B37: Övrigt | C37: Shopping | D37: 100.00 kr | E37: 200.00 kr | F37: 150.00 kr | G37: 175.00 kr | H37: 150.00 kr | I37: 175.00 kr | P37: =SUM(Månatlig[[#This Row],[Jan]:[Dec]]) -> 950.00 kr
B38: Övrigt | C38: Välgörenhet | D38: 50.00 kr | E38: 50.00 kr | F38: 50.00 kr | G38: 50.00 kr | H38: 50.00 kr | I38: 50.00 kr | P38: =SUM(Månatlig[[#This Row],[Jan]:[Dec]]) -> 300.00 kr
B39: Övrigt | C39: Förening/medlemskap | D39: 25.00 kr | E39: 25.00 kr | F39: 25.00 kr | G39: 25.00 kr | H39: 25.00 kr | I39: 25.00 kr | P39: =SUM(Månatlig[[#This Row],[Jan]:[Dec]]) -> 150.00 kr
B40: Övrigt | C40: Renoveringar | D40: 400.00 kr | E40: 400.00 kr | F40: 400.00 kr | G40: 400.00 kr | H40: 400.00 kr | I40: 400.00 kr | P40: =SUM(Månatlig[[#This Row],[Jan]:[Dec]]) -> 2,400.00 kr
B41: Övrigt | C41: Övrigt 1 | D41: 0.00 kr | E41: 0.00 kr | F41: 0.00 kr | G41: 0.00 kr | H41: 0.00 kr | I41: 0.00 kr | P41: =SUM(Månatlig[[#This Row],[Jan]:[Dec]]) -> 0.00 kr
B42: Övrigt | C42: Övrigt 2 | D42: 0.00 kr | E42: 0.00 kr | F42: 0.00 kr | G42: 0.00 kr | H42: 0.00 kr | I42: 0.00 kr | P42: =SUM(Månatlig[[#This Row],[Jan]:[Dec]]) -> 0.00 kr
B43: Sparande | C43: Kassareserver | D43: 416.67 kr | E43: 416.67 kr | F43: 416.67 kr | G43: 416.67 kr | H43: 416.67 kr | I43: 416.67 kr | P43: =SUM(Månatlig[[#This Row],[Jan]:[Dec]]) -> 2,500.00 kr
B44: Sparande | C44: Pensionssparande | D44: 1,000.00 kr | E44: 1,000.00 kr | F44: 1,000.00 kr | G44: 1,000.00 kr | H44: 1,000.00 kr | I44: 1,000.00 kr | P44: =SUM(Månatlig[[#This Row],[Jan]:[Dec]]) -> 6,000.00 kr
B45: Sparande | C45: Sparkonto | D45: 500.00 kr | E45: 500.00 kr | F45: 500.00 kr | G45: 500.00 kr | H45: 500.00 kr | I45: 500.00 kr | P45: =SUM(Månatlig[[#This Row],[Jan]:[Dec]]) -> 3,000.00 kr
B46: Sparande | C46: Övrigt 1 | D46: 0.00 kr | E46: 0.00 kr | F46: 0.00 kr | G46: 0.00 kr | H46: 0.00 kr | I46: 0.00 kr | P46: =SUM(Månatlig[[#This Row],[Jan]:[Dec]]) -> 0.00 kr
B47: Sparande | C47: Övrigt 2 | D47: 0.00 kr | E47: 0.00 kr | F47: 0.00 kr | G47: 0.00 kr | H47: 0.00 kr | I47: 0.00 kr | P47: =SUM(Månatlig[[#This Row],[Jan]:[Dec]]) -> 0.00 kr
B48: Summa | D48: =SUMIF(Månatlig[Typ],"Inkomster",Månatlig[Jan])-SUMIF(Månatlig[Typ],"<>Inkomster",Månatlig[Jan]) -> 3,692.50 kr | E48: =SUMIF(Månatlig[Typ],"Inkomster",Månatlig[Feb])-SUMIF(Månatlig[Typ],"<>Inkomster",Månatlig[Feb]) -> 3,247.50 kr | F48: =SUMIF(Månatlig[Typ],"Inkomster",Månatlig[Mars])-SUMIF(Månatlig[Typ],"<>Inkomster",Månatlig[Mars]) -> 2,522.50 kr | G48: =SUMIF(Månatlig[Typ],"Inkomster",Månatlig[Apr])-SUMIF(Månatlig[Typ],"<>Inkomster",Månatlig[Apr]) -> 3,427.50 kr | H48: =SUMIF(Månatlig[Typ],"Inkomster",Månatlig[Maj])-SUMIF(Månatlig[Typ],"<>Inkomster",Månatlig[Maj]) -> 2,887.50 kr | I48: =SUMIF(Månatlig[Typ],"Inkomster",Månatlig[Jun])-SUMIF(Månatlig[Typ],"<>Inkomster",Månatlig[Jun]) -> 2,602.50 kr | J48: =SUMIF(Månatlig[Typ],"Inkomster",Månatlig[Jul])-SUMIF(Månatlig[Typ],"<>Inkomster",Månatlig[Jul]) -> 0.00 kr | K48: =SUMIF(Månatlig[Typ],"Inkomster",Månatlig[Aug])-SUMIF(Månatlig[Typ],"<>Inkomster",Månatlig[Aug]) -> 0.00 kr | L48: =SUMIF(Månatlig[Typ],"Inkomster",Månatlig[Sep])-SUMIF(Månatlig[Typ],"<>Inkomster",Månatlig[Sep]) -> 0.00 kr | M48: =SUMIF(Månatlig[Typ],"Inkomster",Månatlig[Okt])-SUMIF(Månatlig[Typ],"<>Inkomster",Månatlig[Okt]) -> 0.00 kr | N48: =SUMIF(Månatlig[Typ],"Inkomster",Månatlig[Nov])-SUMIF(Månatlig[Typ],"<>Inkomster",Månatlig[Nov]) -> 0.00 kr | O48: =SUMIF(Månatlig[Typ],"Inkomster",Månatlig[Dec])-SUMIF(Månatlig[Typ],"<>Inkomster",Månatlig[Dec]) -> 0.00 kr | P48: =SUMIF(Månatlig[Typ],"Inkomster",Månatlig[Summa])-SUMIF(Månatlig[Typ],"<>Inkomster",Månatlig[Summa]) -> 18,380.00 kr

Sheet Årligt kassaflöde
B1: PERSONLIGT KASSAFLÖDE
C2: Kassaflöde totalsumma hittills: | D2: =AnnualCashFlowToDate -> 42,250.00 kr | G2: Det här är en årlig kalkyl. Använd det här kalkylbladet om du vill visa årliga belopp med uppskattade månatliga värden. Använd kalkylbladen Intäkter, Utgifter, Övrigt och Sparande för att ange artiklar.
B4: INKOMSTÖVERSIKT | F4: UTGIFTSÖVERSIKT | J4: ÖVERSIKT ÖVER ÖVRIGT | N4: ÖVERSIKT ÖVER SPARANDE
B5: Årlig totalsumma: | C5: =Inkomster!C11 -> 125,000.00 kr | F5: Årlig totalsumma: | G5: =Utgifter[[#Totals],[Årlig ]] -> 46,500.00 kr | J5: Årlig totalsumma: | K5: =Övrigt[[#Totals],[Årlig ]] -> 13,250.00 kr | N5: Årlig totalsumma: | O5: =Sparande[[#Totals],[Årlig ]] -> 23,000.00 kr
B8: Månatlig totalsumma: | C8: =Inkomster!D11 -> 10,416.67 kr | F8: Månatlig totalsumma: | G8: =Utgifter[[#Totals],[Månatlig ]] -> 3,875.00 kr | J8: Månatlig totalsumma: | K8: =Övrigt[[#Totals],[Månatlig ]] -> 1,104.17 kr | N8: Månatlig totalsumma: | O8: =Sparande!D10 -> 1,916.67 kr
R10: Radetiketter | S10: Årsinkomst | U10: Radetiketter | V10: Summan av år | X10: Radetiketter | Y10: Summan av år | AA10: Radetiketter | AB10: Summan av år
R11: Övrigt 2 | S11: 0 kr | U11: Övrigt 2 | V11: 0 kr | X11: Övrigt 2 | Y11: 0 kr | AA11: Övrigt 2 | AB11: 0 kr
R12: Övrigt 3 | S12: 0 kr | U12: Övrigt 1 | V12: 0 kr | X12: Övrigt 1 | Y12: 0 kr | AA12: Övrigt 1 | AB12: 0 kr
R13: Övrigt 4 | S13: 0 kr | U13: Sophantering | V13: 150 kr | X13: Förening/medlemskap | Y13: 300 kr | AA13: Kassareserver | AB13: 5 000 kr
R14: Provisioner/bonus | S14: 5 000 kr | U14: Fordonsskatt/avgifter | V14: 200 kr | X14: Kroppsvård | Y14: 300 kr | AA14: Sparande/investeringar | AB14: 6 000 kr
R15: Övrigt 1 | S15: 30 000 kr | U15: Försäkring | V15: 250 kr | X15: Välgörenhet | Y15: 600 kr | AA15: Pensionssparande | AB15: 12 000 kr
R16: Lön | S16: 90 000 kr | U16: Internet | V16: 600 kr | X16: Gåvor | Y16: 600 kr | AA16: Totalsumma | AB16: 23 000 kr
R17: Totalsumma | S17: 125 000 kr | U17: Sjukvård/Tandvård/Läkemedel | V17: 600 kr | X17: Nöjen | Y17: 1 200 kr
U18: Bensin | V18: 600 kr | X18: Restaurang | Y18: 1 200 kr
U19: Vatten/avlopp | V19: 600 kr | X19: Shopping | Y19: 2 000 kr
U20: Telefon | V20: 600 kr | X20: Resor | Y20: 2 250 kr
U21: Kläder | V21: 1 200 kr | X21: Renoveringar | Y21: 4 800 kr
U22: Elektricitet | V22: 1 200 kr | X22: Totalsumma | Y22: 13 250 kr
U23: Funktionsnedsättningshjälp | V23: 1 500 kr
U24: Kommunal inkomstskatt | V24: 2 500 kr
U25: Avbetalningar fordon | V25: 4 000 kr
U26: Mat | V26: 5 000 kr
U27: Statlig inkomstskatt/egenavgifter/sjukförsäkring | V27: 12 500 kr
U28: Avbetalning bostad/hyra | V28: 15 000 kr
U29: Totalsumma | V29: 46 500 kr

Sheet Inkomster
B1: PERSONLIGT KASSAFLÖDE
C2: Kassaflöde totalsumma hittills: | D2: =AnnualCashFlowToDate -> 42,250.00 kr | F2: Det här är en årlig kalkyl. Använd det här kalkylbladet om du vill visa årliga belopp med uppskattade månatliga värden. Om du vill lägga till dagliga poster i tabellen uppskattar du deras årliga belopp/värde och placerar värdet i rätt årskolumn.
B4: Inkomster | C4: Årlig | D4: Månatlig
B5: Lön | C5: 90,000.00 kr | D5: =Inkomster[[#This Row],[Årlig ]]/12 -> 7,500.00 kr
B6: Provisioner/bonus | C6: 5,000.00 kr | D6: =Inkomster[[#This Row],[Årlig ]]/12 -> 416.67 kr
B7: Övrigt 1 | C7: 30,000.00 kr | D7: =Inkomster[[#This Row],[Årlig ]]/12 -> 2,500.00 kr
B8: Övrigt 2 | C8: 0.00 kr | D8: =Inkomster[[#This Row],[Årlig ]]/12 -> 0.00 kr
B9: Övrigt 3 | C9: 0.00 kr | D9: =Inkomster[[#This Row],[Årlig ]]/12 -> 0.00 kr
B10: Övrigt 4 | C10: 0.00 kr | D10: =Inkomster[[#This Row],[Årlig ]]/12 -> 0.00 kr
B11: Summa | C11: =SUBTOTAL(109,Inkomster[[Årlig ]]) -> 125,000.00 kr | D11: =SUBTOTAL(109,Inkomster[[Månatlig ]]) -> 10,416.67 kr

Sheet Utgifter
B1: PERSONLIGT KASSAFLÖDE
C2: Kassaflöde totalsumma hittills: | D2: =AnnualCashFlowToDate -> 42,250.00 kr | F2: Det här är en årlig kalkyl. Använd det här kalkylbladet om du vill visa årliga belopp med uppskattade månatliga värden Om du vill lägga till dagliga poster i tabellen uppskattar du deras årliga belopp/värde och placerar värdet i rätt årskolumn.
B4: Utgifter | C4: Årlig | D4: Månatlig
B5: Statlig inkomstskatt/egenavgifter/sjukförsäkring | C5: 12,500.00 kr | D5: =Utgifter[[#This Row],[Årlig ]]/12 -> 1,041.67 kr
B6: Kommunal inkomstskatt | C6: 2,500.00 kr | D6: =Utgifter[[#This Row],[Årlig ]]/12 -> 208.33 kr
B7: Fordonsskatt/avgifter | C7: 200.00 kr | D7: =Utgifter[[#This Row],[Årlig ]]/12 -> 16.67 kr
B8: Avbetalningar fordon | C8: 4,000.00 kr | D8: =Utgifter[[#This Row],[Årlig ]]/12 -> 333.33 kr
B9: Avbetalning bostad/hyra | C9: 15,000.00 kr | D9: =Utgifter[[#This Row],[Årlig ]]/12 -> 1,250.00 kr
B10: Försäkring | C10: 250.00 kr | D10: =Utgifter[[#This Row],[Årlig ]]/12 -> 20.83 kr
B11: Elektricitet | C11: 1,200.00 kr | D11: =Utgifter[[#This Row],[Årlig ]]/12 -> 100.00 kr
B12: Bensin | C12: 600.00 kr | D12: =Utgifter[[#This Row],[Årlig ]]/12 -> 50.00 kr
B13: Vatten/avlopp | C13: 600.00 kr | D13: =Utgifter[[#This Row],[Årlig ]]/12 -> 50.00 kr
B14: Sophantering | C14: 150.00 kr | D14: =Utgifter[[#This Row],[Årlig ]]/12 -> 12.50 kr
B15: Telefon | C15: 600.00 kr | D15: =Utgifter[[#This Row],[Årlig ]]/12 -> 50.00 kr
B16: Internet | C16: 600.00 kr | D16: =Utgifter[[#This Row],[Årlig ]]/12 -> 50.00 kr
B17: Funktionsnedsättningshjälp | C17: 1,500.00 kr | D17: =Utgifter[[#This Row],[Årlig ]]/12 -> 125.00 kr
B18: Mat | C18: 5,000.00 kr | D18: =Utgifter[[#This Row],[Årlig ]]/12 -> 416.67 kr
B19: Kläder | C19: 1,200.00 kr | D19: =Utgifter[[#This Row],[Årlig ]]/12 -> 100.00 kr
B20: Sjukvård/Tandvård/Läkemedel | C20: 600.00 kr | D20: =Utgifter[[#This Row],[Årlig ]]/12 -> 50.00 kr
B21: Övrigt 1 | C21: 0.00 kr | D21: =Utgifter[[#This Row],[Årlig ]]/12 -> 0.00 kr
B22: Övrigt 2 | C22: 0.00 kr | D22: =Utgifter[[#This Row],[Årlig ]]/12 -> 0.00 kr
B23: Summa | C23: =SUBTOTAL(109,Utgifter[[Årlig ]]) -> 46,500.00 kr | D23: =SUBTOTAL(109,Utgifter[[Månatlig ]]) -> 3,875.00 kr

Sheet Övrigt
B1: PERSONLIGT KASSAFLÖDE
C2: Kassaflöde totalsumma hittills: | D2: =AnnualCashFlowToDate -> 42,250.00 kr | F2: Det här är en årlig kalkyl. Använd det här kalkylbladet om du vill visa årliga belopp med uppskattade månatliga värden Om du vill lägga till dagliga poster i tabellen uppskattar du deras årliga belopp/värde och placerar värdet i rätt årskolumn.
B4: Övrigt | C4: Årlig | D4: Månatlig
B5: Restaurang | C5: 1,200.00 kr | D5: =Övrigt[[#This Row],[Årlig ]]/12 -> 100.00 kr
B6: Gåvor | C6: 600.00 kr | D6: =Övrigt[[#This Row],[Årlig ]]/12 -> 50.00 kr
B7: Resor | C7: 2,250.00 kr | D7: =Övrigt[[#This Row],[Årlig ]]/12 -> 187.50 kr
B8: Nöjen | C8: 1,200.00 kr | D8: =Övrigt[[#This Row],[Årlig ]]/12 -> 100.00 kr
B9: Kroppsvård | C9: 300.00 kr | D9: =Övrigt[[#This Row],[Årlig ]]/12 -> 25.00 kr
B10: Shopping | C10: 2,000.00 kr | D10: =Övrigt[[#This Row],[Årlig ]]/12 -> 166.67 kr
B11: Välgörenhet | C11: 600.00 kr | D11: =Övrigt[[#This Row],[Årlig ]]/12 -> 50.00 kr
B12: Förening/medlemskap | C12: 300.00 kr | D12: =Övrigt[[#This Row],[Årlig ]]/12 -> 25.00 kr
B13: Renoveringar | C13: 4,800.00 kr | D13: =Övrigt[[#This Row],[Årlig ]]/12 -> 400.00 kr
B14: Övrigt 1 | C14: 0.00 kr | D14: =Övrigt[[#This Row],[Årlig ]]/12 -> 0.00 kr
B15: Övrigt 2 | C15: 0.00 kr | D15: =Övrigt[[#This Row],[Årlig ]]/12 -> 0.00 kr
B16: Summa | C16: =SUBTOTAL(109,Övrigt[[Årlig ]]) -> 13,250.00 kr | D16: =SUBTOTAL(109,Övrigt[[Månatlig ]]) -> 1,104.17 kr

Sheet Sparande
B1: PERSONLIGT KASSAFLÖDE
C2: Kassaflöde totalsumma hittills: | D2: =AnnualCashFlowToDate -> 42,250.00 kr | F2: Det här är en årlig kalkyl. Använd det här kalkylbladet om du vill visa årliga belopp med uppskattade månatliga värden Om du vill lägga till dagliga poster i tabellen uppskattar du deras årliga belopp/värde och placerar värdet i rätt årskolumn.
B4: Sparande | C4: Årlig | D4: Månatlig
B5: Kassareserver | C5: 5,000.00 kr | D5: =Sparande[[#This Row],[Årlig ]]/12 -> 416.67 kr
B6: Pensionssparande | C6: 12,000.00 kr | D6: =Sparande[[#This Row],[Årlig ]]/12 -> 1,000.00 kr
B7: Sparande/investeringar | C7: 6,000.00 kr | D7: =Sparande[[#This Row],[Årlig ]]/12 -> 500.00 kr
B8: Övrigt 1 | C8: 0.00 kr | D8: =Sparande[[#This Row],[Årlig ]]/12 -> 0.00 kr
B9: Övrigt 2 | C9: 0.00 kr | D9: =Sparande[[#This Row],[Årlig ]]/12 -> 0.00 kr
B10: Summa | C10: =SUBTOTAL(109,Sparande[[Årlig ]]) -> 23,000.00 kr | D10: =SUBTOTAL(109,Sparande[[Månatlig ]]) -> 1,916.67 kr
